fUSD/lending_fUSD_20241222
["ID","MTS","AMOUNT","RATE_DAILY","PERIOD"]
[346359279,1734911434070,-500.0,0.00019178,2]
[346359280,1734911434079,-500.0,0.00019178,2]
[346359281,1734911434089,-500.0,0.00019178,2]
[346359282,1734911434099,-500.0,0.00019178,2]
[346359283,1734911434109,-500.0,0.00019178,2]
[346359284,1734911434118,-500.0,0.00019178,2]
[346359285,1734911434127,-500.0,0.00019178,2]
[346359286,1734911434136,-500.0,0.00019178,2]
[346359287,1734911434146,-500.0,0.00019178,2]
[346359288,1734911434155,-500.0,0.00019178,2]
[346359289,1734911434166,-500.0,0.00019178,2]
[346359290,1734911434175,-635.26,0.00019178,2]
[346359291,1734911434185,-500.0,0.00019178,2]
[346359292,1734911434195,-500.0,0.00019178,2]
[346359293,1734911434204,-500.0,0.00019178,2]
[346359294,1734911434214,-500.0,0.00019178,2]
[346359295,1734911434224,-27.98131562,0.00019178,2]
[346359296,1734911434267,-472.01868438,0.00019178,2]
[346359297,1734911434277,-500.0,0.00019178,2]
[346359298,1734911434287,-500.0,0.00019178,2]
[346359299,1734911434296,-500.0,0.00019178,2]
[346359300,1734911434306,-500.0,0.00019178,2]
[346359301,1734911434315,-500.0,0.00019178,2]
[346359302,1734911434324,-500.0,0.00019178,2]
[346359303,1734911434334,-500.0,0.00019178,2]
[346359304,1734911434343,-500.0,0.00019178,2]
[346359305,1734911434352,-586.39,0.00019178,2]
[346359306,1734911434361,-500.0,0.00019178,2]
[346359307,1734911434370,-500.0,0.00019178,2]
[346359308,1734911434380,-500.0,0.00019178,2]
[346359309,1734911434389,-500.0,0.00019178,2]
[346359310,1734911434398,-500.0,0.00019178,2]
[346359311,1734911434408,-500.0,0.00019178,2]
[346359312,1734911434419,-500.0,0.00019178,2]
[346359313,1734911434429,-500.0,0.00019178,2]
[346359314,1734911434438,-506.51,0.00019178,2]
[346359315,1734911434448,-500.0,0.00019178,2]
[346359316,1734911434457,-500.0,0.00019178,2]
[346359317,1734911434467,-500.0,0.00019178,2]
[346359318,1734911434482,-500.0,0.00019178,2]
[346359319,1734911434491,-500.0,0.00019178,2]
[346359320,1734911434501,-500.0,0.00019178,2]
[346359321,1734911434511,-500.0,0.00019178,2]
[346359322,1734911434523,-500.0,0.00019178,2]
[346359323,1734911434533,-500.0,0.00019178,2]
[346359324,1734911434542,-692.95,0.00019178,2]
[346359325,1734911434552,-500.0,0.00019178,2]
[346359326,1734911434562,-501.53086266,0.00019178,2]
[346359327,1734911434571,-611.9,0.00019178,2]
[346359328,1734911434581,-392.36,0.00019178,2]
[346359329,1734911434590,-593.35357509,0.00019178,2]
[346359330,1734911434599,-500.0,0.00019178,2]
[346359331,1734911434608,-500.0,0.00019178,2]
[346359332,1734911434618,-500.0,0.00019178,2]
[346359333,1734911434627,-500.0,0.00019178,2]
[346359334,1734911434637,-500.0,0.00019178,2]
[346359335,1734911434646,-778.5,0.00019178,2]
[346359336,1734911434655,-500.0,0.00019178,2]
[346359337,1734911434667,-500.0,0.00019178,2]
[346359338,1734911434676,-500.0,0.00019178,2]
[346359339,1734911434685,-500.0,0.00019178,2]
[346359340,1734911434695,-959.78,0.00019178,2]
[346359341,1734911434704,-500.0,0.00019178,2]
[346359342,1734911434714,-500.0,0.00019178,2]
[346359343,1734911434723,-563.79,0.00019178,2]
[346359344,1734911434732,-500.0,0.00019178,2]
[346359345,1734911434742,-500.0,0.00019178,2]
[346359346,1734911434751,-500.0,0.00019178,2]
[346359347,1734911434760,-500.0,0.00019178,2]
[346359348,1734911434769,-500.0,0.00019178,2]
[346359349,1734911434779,-500.0,0.00019178,2]
[346359350,1734911434788,-500.0,0.00019178,2]
[346359351,1734911434797,-500.0,0.00019178,2]
[346359352,1734911434807,-624.28,0.00019178,2]
[346359353,1734911434815,-500.0,0.00019178,2]
[346359354,1734911434825,-500.0,0.00019178,2]
[346359355,1734911434834,-170.95393096,0.00019178,2]
[346359356,1734911434843,-731.78,0.00019178,2]
[346359357,1734911434852,-275.67,0.00019178,2]
[346359358,1734911434860,-500.0,0.00019178,2]
[346359359,1734911434869,-500.0,0.00019178,2]
[346359360,1734911434878,-500.0,0.00019178,2]
[346359361,1734911434887,-500.0,0.00019178,2]
[346359362,1734911434896,-500.0,0.00019178,2]
[346359363,1734911434905,-500.0,0.00019178,2]
[346359364,1734911434919,-500.0,0.00019178,2]
[346359365,1734911434928,-500.0,0.00019178,2]
[346359366,1734911434936,-556.54,0.00019178,2]
[346359367,1734911434945,-500.0,0.00019178,2]
[346359368,1734911434954,-500.0,0.00019178,2]
[346359369,1734911434963,-500.0,0.00019178,2]
[346359370,1734911434973,-500.0,0.00019178,2]
[346359371,1734911434981,-676.53,0.00019178,2]
[346359372,1734911434991,-500.0,0.00019178,2]
[346359373,1734911435000,-500.0,0.00019178,2]
[346359374,1734911435187,-500.0,0.00019178,2]
[346359375,1734911435196,-639.1,0.00019178,2]
[346359376,1734911435205,-500.0,0.00019178,2]
[346359377,1734911435214,-500.0,0.00019178,2]
[346359378,1734911435222,-725.16,0.00019178,2]
[346359379,1734911435232,-500.0,0.00019178,2]
[346359380,1734911435241,-500.0,0.00019178,2]
[346359381,1734911435250,-500.0,0.00019178,2]
[346359382,1734911435260,-500.0,0.00019178,2]
[346359383,1734911435269,-500.0,0.00019178,2]
[346359384,1734911435278,-500.0,0.00019178,2]
[346359385,1734911435287,-541.92,0.00019178,2]
[346359386,1734911435296,-500.0,0.00019178,2]
[346359387,1734911435305,-500.0,0.00019178,2]
[346359388,1734911435315,-500.0,0.00019178,2]
[346359389,1734911435325,-500.0,0.00019178,2]
[346359390,1734911435334,-500.0,0.00019178,2]
[346359391,1734911435343,-500.0,0.00019178,2]
[346359392,1734911435355,-500.0,0.00019178,2]
[346359393,1734911435364,-500.0,0.00019178,2]
[346359394,1734911435373,-500.0,0.00019178,2]
[346359395,1734911435382,-500.0,0.00019178,2]
[346359396,1734911435390,-500.0,0.00019178,2]
[346359397,1734911435399,-500.0,0.00019178,2]
[346359398,1734911435409,-500.0,0.00019178,2]
[346359399,1734911435418,-500.0,0.00019178,2]
[346359400,1734911435427,-507.19,0.00019178,2]
[346359401,1734911435437,-602.02,0.00019178,2]
[346359402,1734911435446,-672.61,0.00019178,2]
[346359403,1734911435454,-500.0,0.00019178,2]
[346359404,1734911435463,-500.0,0.00019178,2]
[346359405,1734911435473,-500.0,0.00019178,2]
[346359406,1734911435484,-500.0,0.00019178,2]
[346359407,1734911435493,-327.27874213,0.00019178,2]
[346359408,1734911435502,-500.0,0.00019178,2]
[346359409,1734911435511,-500.0,0.00019178,2]
[346359410,1734911435520,-500.0,0.00019178,2]
[346359411,1734911435530,-500.0,0.00019178,2]
[346359412,1734911435539,-500.0,0.00019178,2]
[346359413,1734911435548,-659.49,0.00019178,2]
[346359414,1734911435557,-500.0,0.00019178,2]
[346359415,1734911435567,-500.0,0.00019178,2]
[346359416,1734911435576,-500.0,0.00019178,2]
[346359417,1734911435585,-500.0,0.00019178,2]
[346359418,1734911435594,-500.0,0.00019178,2]
[346359419,1734911435604,-500.0,0.00019178,2]
[346359420,1734911435613,-500.0,0.00019178,2]
[346359421,1734911435622,-500.0,0.00019178,2]
[346359422,1734911435631,-507.06,0.00019178,2]
[346359423,1734911435640,-500.0,0.00019178,2]
[346359424,1734911435649,-500.0,0.00019178,2]
[346359425,1734911435658,-500.0,0.00019178,2]
[346359426,1734911435668,-500.0,0.00019178,2]
[346359427,1734911435677,-500.0,0.00019178,2]
[346359428,1734911435687,-500.0,0.00019178,2]
[346359429,1734911435696,-500.0,0.00019178,2]
[346359430,1734911435705,-500.0,0.00019178,2]
[346359431,1734911435715,-500.0,0.00019178,2]
[346359432,1734911435724,-500.0,0.00019178,2]
[346359433,1734911435733,-500.0,0.00019178,2]
[346359434,1734911435743,-500.0,0.00019178,2]
[346359435,1734911435752,-500.0,0.00019178,2]
[346359436,1734911435761,-517.46,0.00019178,2]
[346359437,1734911435770,-1018.82,0.00019178,2]
[346359438,1734911435779,-783.76,0.00019178,2]
[346359439,1734911435788,-500.0,0.00019178,2]
[346359440,1734911435797,-500.0,0.00019178,2]
[346359441,1734911435806,-500.0,0.00019178,2]
[346359442,1734911435815,-217.63731024,0.00019178,2]
[346359443,1734911435824,-647.05,0.00019178,2]
[346359444,1734911435834,-500.0,0.00019178,2]
[346359445,1734911435843,-500.0,0.00019178,2]
[346359446,1734911435852,-500.0,0.00019178,2]
[346359447,1734911435861,-1118.09,0.00019178,2]
[346359448,1734911435870,-500.0,0.00019178,2]
[346359449,1734911435879,-500.0,0.00019178,2]
[346359450,1734911435888,-500.0,0.00019178,2]
[346359451,1734911435897,-501.36775633,0.00019178,2]
[346359452,1734911435906,-500.0,0.00019178,2]
[346359453,1734911435916,-1349.14,0.00019178,2]
[346359454,1734911435926,-500.0,0.00019178,2]
[346359455,1734911435935,-500.0,0.00019178,2]
[346359456,1734911435943,-715.15,0.00019178,2]
[346359457,1734911435952,-500.0,0.00019178,2]
[346359458,1734911435962,-4721.7,0.00019178,2]
[346359459,1734911435971,-500.0,0.00019178,2]
[346359460,1734911435981,-500.0,0.00019178,2]
[346359461,1734911435990,-500.0,0.00019178,2]
[346359462,1734911436000,-829.73,0.00019178,2]
[346359463,1734911436009,-500.0,0.00019178,2]
[346359464,1734911436019,-544.95108607,0.00019178,2]
[346359465,1734911436028,-822.5,0.00019178,2]
[346359466,1734911436037,-500.0,0.00019178,2]
[346359467,1734911436047,-2023.71,0.00019178,2]
[346359468,1734911436056,-396.23000087,0.00019178,2]
[346359469,1734911436065,-500.0,0.00019178,2]
[346359470,1734911436074,-761.04,0.00019178,2]
[346359471,1734911436083,-500.0,0.00019178,2]
[346359472,1734911436092,-595.33,0.00019178,2]
[346359473,1734911436102,-500.0,0.00019178,2]
[346359474,1734911436111,-1438.16,0.00019178,2]
[346359475,1734911436120,-500.0,0.00019178,2]
[346359476,1734911436129,-3003.77,0.00019178,2]
[346359477,1734911436138,-771.65,0.00019178,2]
[346359478,1734911436147,-450.33,0.00019178,2]
[346359479,1734911436156,-547.08,0.00019178,2]
[346359480,1734911436167,-500.0,0.00019178,2]
[346359481,1734911436176,-500.0,0.00019178,2]
[346359482,1734911436185,-500.0,0.00019178,2]
[346359483,1734911436195,-574.29,0.00019178,2]
[346359484,1734911436204,-1107.46,0.00019178,2]
[346359485,1734911436213,-500.0,0.00019178,2]
[346359486,1734911436222,-1426.76,0.00019178,2]
[346359487,1734911436232,-500.0,0.00019178,2]
[346359488,1734911436241,-500.0,0.00019178,2]
[346359489,1734911436251,-714.08,0.00019178,2]
[346359490,1734911436260,-500.0,0.00019178,2]
[346359491,1734911436270,-500.0,0.00019178,2]
[346359492,1734911436281,-500.0,0.00019178,2]
[346359493,1734911436289,-500.0,0.00019178,2]
[346359494,1734911436298,-1167.78,0.00019178,2]
[346359495,1734911436307,-1617.9,0.00019178,2]
[346359496,1734911436316,-1025.36,0.00019178,2]
[346359497,1734911436325,-504.39027059,0.00019178,2]
[346359498,1734911436334,-500.0,0.00019178,2]
[346359499,1734911436345,-1304.67,0.00019178,2]
[346359500,1734911436354,-500.0,0.00019178,2]
[346359501,1734911436364,-1009.33,0.00019178,2]
[346359502,1734911436374,-500.0,0.00019178,2]
[346359503,1734911436383,-1190.61,0.00019178,2]
[346359504,1734911436392,-679.27,0.00019178,2]
[346359505,1734911436402,-568.14,0.00019178,2]
[346359506,1734911436411,-500.0,0.00019178,2]
[346359507,1734911436420,-710.55,0.00019178,2]
[346359508,1734911436428,-762.77,0.00019178,2]
[346359509,1734911436439,-500.0,0.00019178,2]
[346359510,1734911436448,-500.0,0.00019178,2]
[346359511,1734911436458,-2219.25,0.00019178,2]
[346359512,1734911436467,-2242.61,0.00019178,2]
[346359513,1734911436476,-535.89,0.00019178,2]
[346359514,1734911436489,-195.11979472,0.00019178,2]
[346359515,1734911436498,-500.0,0.00019178,2]
[346359516,1734911436507,-5685.82,0.00019178,2]
[346359517,1734911436516,-500.0,0.00019178,2]
[346359518,1734911436525,-500.0,0.00019178,2]
[346359519,1734911436535,-1302.96,0.00019178,2]
[346359520,1734911436543,-3141.48,0.00019178,2]
[346359521,1734911436552,-500.0,0.00019178,2]
[346359522,1734911436562,-500.0,0.00019178,2]
[346359523,1734911436571,-1573.59,0.00019178,2]
[346359524,1734911436580,-500.0,0.00019178,2]
[346359525,1734911436590,-18345.24,0.00019178,2]
[346359526,1734911436599,-500.0,0.00019178,2]
[346359527,1734911436608,-500.0,0.00019178,2]
[346359528,1734911436618,-500.0,0.00019178,2]
[346359529,1734911436627,-7222.5,0.00019178,2]
[346359530,1734911436636,-500.0,0.00019178,2]
[346359531,1734911436645,-500.0,0.00019178,2]
[346359532,1734911436654,-500.0,0.00019178,2]
[346359533,1734911436664,-500.0,0.00019178,2]
[346359534,1734911436673,-1399.71,0.00019178,2]
[346359535,1734911436682,-742.89,0.00019178,2]
[346359536,1734911436692,-742.89,0.00019178,2]
[346359537,1734911436701,-500.0,0.00019178,2]
[346359538,1734911436710,-500.0,0.00019178,2]
[346359539,1734911436718,-500.0,0.00019178,2]
[346359540,1734911436728,-500.0,0.00019178,2]
[346359541,1734911436737,-500.0,0.00019178,2]
[346359542,1734911436747,-814.39,0.00019178,2]
[346359543,1734911436756,-1842.82,0.00019178,2]
[346359544,1734911436765,-500.0,0.00019178,2]
[346359545,1734911436774,-500.0,0.00019178,2]
[346359546,1734911436783,-910.25,0.00019178,2]
[346359547,1734911436792,-1162.97,0.00019178,2]
[346359548,1734911436801,-930.02,0.00019178,2]
[346359549,1734911436810,-500.0,0.00019178,2]
[346359550,1734911436819,-835.17,0.00019178,2]
[346359551,1734911436828,-500.0,0.00019178,2]
[346359552,1734911436837,-1085.85,0.00019178,2]
[346359553,1734911436846,-500.0,0.00019178,2]
[346359554,1734911436855,-2137.27,0.00019178,2]
[346359555,1734911436864,-1145.25,0.00019178,2]
[346359556,1734911436873,-500.0,0.00019178,2]
[346359557,1734911436882,-890.16,0.00019178,2]
[346359558,1734911436891,-500.0,0.00019178,2]
[346359559,1734911436900,-953.67,0.00019178,2]
[346359560,1734911436909,-500.0,0.00019178,2]
[346359561,1734911436919,-500.0,0.00019178,2]
[346359562,1734911436928,-1494.64,0.00019178,2]
[346359563,1734911436937,-500.0,0.00019178,2]
[346359564,1734911436947,-837.35,0.00019178,2]
[346359565,1734911436956,-1535.53,0.00019178,2]
[346359566,1734911436965,-1083.54,0.00019178,2]
[346359567,1734911436974,-966.55,0.00019178,2]
[346359568,1734911436984,-500.0,0.00019178,2]
[346359569,1734911436993,-722.64,0.00019178,2]
[346359570,1734911437003,-500.0,0.00019178,2]
[346359571,1734911437012,-3294.02,0.00019178,2]
[346359572,1734911437021,-500.0,0.00019178,2]
[346359573,1734911437030,-500.0,0.00019178,2]
[346359574,1734911437039,-500.0,0.00019178,2]
[346359575,1734911437048,-1574.07,0.00019178,2]
[346359576,1734911437057,-500.0,0.00019178,2]
[346359577,1734911437066,-601.23,0.00019178,2]
[346359578,1734911437075,-500.0,0.00019178,2]
[346359579,1734911437084,-426.04,0.00019178,2]
[346359580,1734911437094,-500.0,0.00019178,2]
[346359581,1734911437102,-687.11,0.00019178,2]
[346359582,1734911437111,-500.0,0.00019178,2]
[346359583,1734911437120,-2033.17,0.00019178,2]
[346359584,1734911437129,-1260.55,0.00019178,2]
[346359585,1734911437138,-1601.49,0.00019178,2]
[346359586,1734911437149,-590.12,0.00019178,2]
[346359587,1734911437159,-4493.5,0.00019178,2]
[346359588,1734911437168,-6502.4,0.00019178,2]
[346359589,1734911437177,-500.0,0.00019178,2]
[346359590,1734911437186,-500.0,0.00019178,2]
[346359591,1734911437195,-1299.14,0.00019178,2]
[346359592,1734911437204,-2151.64,0.00019178,2]
[346359593,1734911437213,-500.0,0.00019178,2]
[346359594,1734911437222,-500.0,0.00019178,2]
[346359595,1734911437231,-500.0,0.00019178,2]
[346359596,1734911437239,-1190.36,0.00019178,2]
[346359597,1734911437248,-661.3,0.00019178,2]
[346359598,1734911437257,-1091.54,0.00019178,2]
[346359599,1734911437266,-500.0,0.00019178,2]
[346359600,1734911437275,-500.0,0.00019178,2]
[346359601,1734911437284,-12826.5,0.00019178,2]
[346359602,1734911437293,-3323.66,0.00019178,2]
[346359603,1734911437302,-500.0,0.00019178,2]
[346359604,1734911437311,-500.0,0.00019178,2]
[346359605,1734911437320,-3200.18,0.00019178,2]
[346359606,1734911437329,-500.0,0.00019178,2]
[346359607,1734911437338,-2263.07,0.00019178,2]
[346359608,1734911437347,-500.0,0.00019178,2]
[346359609,1734911437356,-1754.79,0.00019178,2]
[346359610,1734911437365,-500.0,0.00019178,2]
[346359611,1734911437374,-3249.52,0.00019178,2]
[346359612,1734911437383,-1565.82,0.00019178,2]
[346359613,1734911437392,-500.0,0.00019178,2]
[346359614,1734911437401,-500.0,0.00019178,2]
[346359615,1734911437410,-2604.75,0.00019178,2]
[346359616,1734911437420,-500.0,0.00019178,2]
[346359617,1734911437431,-840.41,0.00019178,2]
[346359618,1734911437440,-1232.72,0.00019178,2]
[346359619,1734911437449,-1191.58,0.00019178,2]
[346359620,1734911437458,-500.0,0.00019178,2]
[346359621,1734911437467,-500.0,0.00019178,2]
[346359622,1734911437476,-500.0,0.00019178,2]
[346359623,1734911437488,-573.08361839,0.00019178,2]
[346359624,1734911437497,-500.0,0.00019178,2]
[346359625,1734911437506,-500.0,0.00019178,2]
[346359626,1734911437516,-715.98,0.00019178,2]
[346359627,1734911437526,-1516.08,0.00019178,2]
[346359628,1734911437535,-500.0,0.00019178,2]
[346359629,1734911437544,-500.0,0.00019178,2]
[346359630,1734911437553,-1385.31,0.00019178,2]
[346359631,1734911437561,-1172.99,0.00019178,2]
[346359632,1734911437571,-1299.53,0.00019178,2]
[346359633,1734911437579,-500.0,0.00019178,2]
[346359634,1734911437593,-1789.93,0.00019178,2]
[346359635,1734911437603,-500.0,0.00019178,2]
[346359637,1734911437612,-583.26,0.00019178,2]
[346359638,1734911437621,-836.75,0.00019178,2]
[346359639,1734911437632,-775.27,0.00019178,2]
[346359640,1734911437641,-1141.56,0.00019178,2]
[346359641,1734911437650,-911.65,0.00019178,2]
[346359642,1734911437659,-500.0,0.00019178,2]
[346359643,1734911437671,-500.0,0.00019178,2]
[346359644,1734911437681,-5431.21,0.00019178,2]
[346359645,1734911437690,-500.0,0.00019178,2]
[346359646,1734911437699,-500.0,0.00019178,2]
[346359647,1734911437709,-7039.1,0.00019178,2]
[346359648,1734911437719,-500.0,0.00019178,2]
[346359649,1734911437729,-500.0,0.00019178,2]
[346359650,1734911437738,-2925.25,0.00019178,2]
[346359651,1734911437748,-2851.47,0.00019178,2]
[346359652,1734911437757,-500.0,0.00019178,2]
[346359653,1734911437767,-2765.92,0.00019178,2]
[346359654,1734911437777,-763.61,0.00019178,2]
[346359655,1734911437787,-453.7,0.00019178,2]
[346359656,1734911437796,-592.96278335,0.00019178,2]
[346359657,1734911437806,-500.0,0.00019178,2]
[346359658,1734911437815,-500.0,0.00019178,2]
[346359659,1734911437824,-742.02,0.00019178,2]
[346359660,1734911437834,-3095.0,0.00019178,2]
[346359661,1734911437843,-500.0,0.00019178,2]
[346359662,1734911437852,-500.0,0.00019178,2]
[346359663,1734911437862,-997.17,0.00019178,2]
[346359664,1734911437871,-500.0,0.00019178,2]
[346359665,1734911437881,-500.0,0.00019178,2]
[346359666,1734911437890,-500.0,0.00019178,2]
[346359667,1734911437899,-500.0,0.00019178,2]
[346359668,1734911437909,-538.87,0.00019178,2]
[346359669,1734911437920,-500.0,0.00019178,2]
[346359670,1734911437934,-432.72161631,0.00019178,2]
[346359671,1734911437944,-500.0,0.00019178,2]
[346359672,1734911437953,-549.09,0.00019178,2]
[346359673,1734911437962,-844.15,0.00019178,2]
[346359674,1734911437972,-155.27634146,0.00019178,2]
[346359675,1734911437981,-500.0,0.00019178,2]
[346359676,1734911437991,-500.0,0.00019178,2]
[346359677,1734911438001,-505.61,0.00019178,2]
[346359678,1734911438010,-501.68,0.00019178,2]
[346359679,1734911438020,-4600.0,0.000192,7]
[346359680,1734911438029,-159.50120865,0.00019284,2]
[346359681,1734911438039,-5800.0,0.000193,7]
[346359682,1734911438048,-29999.99,0.00019339,2]
[346359683,1734911438057,-183.2180841,0.00019352,2]
[346359684,1734911438066,-2000.0,0.000194,2]
[346359685,1734911438076,-1100.0,0.000194,7]
[346359686,1734911438085,-152.68,0.00019417,2]
[346359687,1734911438094,-2000.0,0.0001945,2]
[346359688,1734911438104,-150.0,0.00019451,2]
[346359689,1734911438113,-742.89,0.00019451,2]
[346359690,1734911438123,-2000.0,0.00019452,2]
[346359691,1734911438132,-518.762497,0.00019452,2]
[346359692,1734911438142,-608.012834,0.00019452,2]
[346359693,1734911438151,-500.0,0.00019452,2]
[346359694,1734911438161,-500.0,0.00019452,2]
[346359695,1734911438172,-258.68,0.00019452,2]
[346359696,1734911438182,-500.0,0.00019452,2]
[346359697,1734911438191,-155.695065,0.00019452,2]
[346359698,1734911438201,-500.0,0.00019452,2]
[346359699,1734911438211,-500.0,0.00019452,2]
[346359700,1734911438220,-500.0,0.00019452,2]
[346359701,1734911438230,-500.0,0.00019452,2]
[346359702,1734911438239,-485.1,0.00019452,2]
[346359703,1734911438248,-154.749001,0.00019452,2]
[346359704,1734911438258,-500.0,0.00019452,2]
[346359705,1734911438268,-592.12,0.00019452,2]
[346359706,1734911438277,-500.0,0.00019452,2]
[346359707,1734911438287,-500.0,0.00019452,2]
[346359708,1734911438297,-500.0,0.00019452,2]
[346359709,1734911438306,-500.0,0.00019452,2]
[346359710,1734911438315,-1740.53,0.00019452,2]
[346359711,1734911438325,-154.749,0.00019452,2]
[346359712,1734911438335,-155.695065,0.00019452,2]
[346359713,1734911438345,-215.44837044,0.00019452,2]
[346359714,1734911438354,-500.0,0.00019452,2]
[346359715,1734911438363,-500.0,0.00019452,2]
[346359716,1734911438373,-500.0,0.00019452,2]
[346359717,1734911438382,-500.0,0.00019452,2]
[346359718,1734911438391,-500.0,0.00019452,2]
[346359719,1734911438402,-500.0,0.00019452,2]
[346359720,1734911438411,-500.0,0.00019452,2]
[346359721,1734911438421,-500.0,0.00019452,2]
[346359722,1734911438430,-695.45,0.00019452,2]
[346359723,1734911438440,-500.0,0.00019452,2]
[346359724,1734911438450,-500.0,0.00019452,2]
[346359725,1734911438459,-500.0,0.00019452,2]
[346359726,1734911438469,-500.0,0.00019452,2]
[346359727,1734911438479,-500.0,0.00019452,2]
[346359728,1734911438492,-500.0,0.00019452,2]
[346359729,1734911438502,-173.00540119,0.00019452,2]
[346359730,1734911438511,-500.0,0.00019452,2]
[346359731,1734911438520,-500.0,0.00019452,2]
[346359732,1734911438531,-500.0,0.00019452,2]
[346359733,1734911438540,-261.02,0.00019452,2]
[346359734,1734911438549,-500.0,0.00019452,2]
[346359735,1734911438560,-500.0,0.00019452,2]
[346359736,1734911438569,-500.0,0.00019452,2]
[346359737,1734911438746,-500.0,0.00019452,2]
[346359738,1734911438757,-500.0,0.00019452,2]
[346359739,1734911438766,-500.0,0.00019452,2]
[346359740,1734911438776,-500.0,0.00019452,2]
[346359741,1734911438785,-500.0,0.00019452,2]
[346359742,1734911438795,-500.0,0.00019452,2]
[346359743,1734911438804,-500.0,0.00019452,2]
[346359744,1734911438813,-500.0,0.00019452,2]
[346359745,1734911438822,-500.0,0.00019452,2]
[346359746,1734911438832,-500.0,0.00019452,2]
[346359747,1734911438841,-500.0,0.00019452,2]
[346359748,1734911438850,-500.0,0.00019452,2]
[346359749,1734911438859,-500.0,0.00019452,2]
[346359750,1734911438869,-500.0,0.00019452,2]
[346359751,1734911438878,-500.0,0.00019452,2]
[346359752,1734911438887,-500.0,0.00019452,2]
[346359753,1734911438896,-500.0,0.00019452,2]
[346359754,1734911438910,-500.0,0.00019452,2]
[346359755,1734911438919,-500.0,0.00019452,2]
[346359756,1734911438928,-500.0,0.00019452,2]
[346359757,1734911438938,-500.0,0.00019452,2]
[346359758,1734911438948,-500.0,0.00019452,2]
[346359759,1734911438957,-500.0,0.00019452,2]
[346359760,1734911438967,-500.0,0.00019452,2]
[346359761,1734911438977,-500.0,0.00019452,2]
[346359762,1734911438986,-500.0,0.00019452,2]
[346359763,1734911438995,-500.0,0.00019452,2]
[346359764,1734911439005,-500.0,0.00019452,2]
[346359765,1734911439014,-500.0,0.00019452,2]
[346359766,1734911439024,-500.0,0.00019452,2]
[346359767,1734911439035,-500.0,0.00019452,2]
[346359768,1734911439045,-500.0,0.00019452,2]
[346359769,1734911439055,-500.0,0.00019452,2]
[346359770,1734911439064,-500.0,0.00019452,2]
[346359771,1734911439073,-500.0,0.00019452,2]
[346359772,1734911439082,-500.0,0.00019452,2]
[346359773,1734911439091,-500.0,0.00019452,2]
[346359774,1734911439101,-500.0,0.00019452,2]
[346359775,1734911439110,-500.0,0.00019452,2]
[346359776,1734911439119,-500.0,0.00019452,2]
[346359777,1734911439129,-336.08,0.00019452,2]
[346359778,1734911439138,-575.58,0.00019452,2]
[346359779,1734911439147,-500.0,0.00019452,2]